bitfinex-derivatives/quotes_SOLF0:USTF0_20241211
["timestamp","ask_amount","ask_price","bid_price","bid_amount"]
[1733889755205,10.92271414,219.96,219.83,2.54]
[1733889755493,10.92271414,219.96,219.88,5.36648019]
[1733889755698,10.92271414,219.96,219.89,2.54]
[1733889756193,2.2721,219.98,219.92,2.2727]
[1733889757588,2.2722,219.97,219.92,4.8127]
[1733889758897,10.92271414,219.99,219.92,2.54]
[1733889759096,10.92271414,219.99,219.93,2.2725]
[1733889759892,10.92271414,219.99,219.92,2.54]
[1733889760090,10.92271414,219.99,219.94,2.2725]
[1733889760091,2.2721,219.98,219.94,2.2725]
[1733889761204,189.1048639,220.19,220.0,2.2719]
[1733889761404,10.92271414,220.03,220.01,2.54]
[1733889762202,2.2717,220.02,220.01,2.54]
[1733889764208,2.2719,220.0,219.88,16.28919433]
[1733889764499,10.92271414,220.03,219.89,2.54]
[1733889764898,2.2718,220.01,219.96,2.2722]
[1733889765107,2.2718,220.01,219.97,2.54]
[1733889766097,8.71127066,220.09,219.97,2.54]
[1733889766098,1.69747,220.09,219.97,2.54]
[1733889766297,2.2715,220.04,219.97,2.54]
[1733889766506,10.92271414,220.05,219.97,2.54]
[1733889766698,2.2715,220.04,219.97,2.54]
[1733889767302,2.2715,220.04,220.0,2.2719]
[1733889767604,10.92271414,220.05,219.97,2.54]
[1733889768610,2.2717,220.02,219.98,2.2721]
[1733889768999,2.2717,220.02,219.99,2.52]
[1733889769400,2.2718,220.01,219.99,2.52]
[1733889772405,10.92271414,220.05,219.99,2.52]
[1733889773006,2.2717,220.03,219.99,2.52]
[1733889773815,2.2717,220.02,219.99,2.52]
[1733889774309,10.92271414,220.05,219.99,2.52]
[1733889774509,10.92271414,220.05,219.99,4.792]
[1733889775715,2.2716,220.04,219.99,4.792]
[1733889776714,2.2718,220.02,219.99,2.52]
[1733889776911,10.92271414,220.05,219.99,2.52]
[1733889777517,1.69747,220.09,219.99,2.52]
[1733889777720,10.92271414,220.05,219.99,2.52]
[1733889778415,2.2716,220.04,219.99,2.52]
[1733889778917,10.92271414,220.05,219.99,2.52]
[1733889779112,2.2717,220.02,219.99,2.52]
[1733889779315,1.69747,220.09,219.99,2.52]
[1733889779723,12.62018414,220.09,219.99,2.52]
[1733889779912,12.62018414,220.09,219.95,2.8445]
[1733889780220,23.4877273,220.08,219.96,2.52]
[1733889780414,10.92271414,220.08,219.97,2.52]
[1733889780615,2.2713,220.06,219.99,5.55135324]
[1733889780815,13.19401414,220.06,219.99,5.55135324]
[1733889781116,1.41,220.09,219.94,2.2724]
[1733889781117,2.2718,220.01,219.94,2.2724]
[1733889781322,2.2718,220.01,219.96,2.52]
[1733889782916,10.92271414,220.03,219.9,1.4436]
[1733889783116,20.60605691,220.02,219.9,1.4436]
[1733889783422,1.4381,220.08,219.91,2.52]
[1733889783423,10.92271414,219.99,219.91,2.52]
[1733889783616,12.57396237,219.98,219.91,2.52]
[1733889784520,2.2722,219.97,219.91,4.7928]
[1733889784724,12.57396237,219.96,219.91,4.7928]
[1733889785329,12.57396237,219.96,219.92,2.52]
[1733889785529,2.2725,219.94,219.92,2.52]
[1733889785717,10.92271414,219.96,219.92,2.52]
[1733889785921,12.57919474,219.95,219.92,2.52]
[1733889786124,10.92271414,219.96,219.92,2.52]
[1733889786320,12.57917031,219.95,219.87,2.2732]
[1733889786525,10.92271414,219.96,219.87,2.52]
[1733889786526,12.57917031,219.94,219.87,2.52]
[1733889786726,12.57917031,219.93,219.87,2.52]
[1733889786926,10.92271414,219.96,219.87,2.52]
[1733889787228,20.61647961,219.95,219.87,2.52]
[1733889787427,12.58006431,219.94,219.87,2.52]
[1733889787624,12.58006431,219.93,219.87,2.52]
[1733889787823,10.92271414,219.97,219.87,2.52]
[1733889788026,20.61366644,219.96,219.87,2.52]
[1733889788325,20.61357443,219.95,219.87,2.52]
[1733889788526,12.57846149,219.94,219.87,2.52]
[1733889788923,2.2725,219.95,219.87,2.52]
[1733889789126,13.19501414,219.97,219.9,2.2729]
[1733889789421,12.57732172,219.96,219.87,2.52]
[1733889789619,13.19501414,219.97,219.87,2.52]
[1733889789821,13.19501414,219.97,219.92,2.2727]
[1733889790028,13.19501414,219.97,219.92,4.7927]
[1733889790325,10.92271414,219.97,219.92,2.52]
[1733889791317,13.19491414,219.97,219.92,2.52]
[1733889792125,10.92271414,219.97,219.88,2.273]
[1733889792323,12.58088978,219.96,219.89,2.52]
[1733889792525,10.92271414,219.94,219.86,2.52]
[1733889792724,2.2726,219.93,219.86,2.52]
[1733889793723,2.2726,219.93,219.87,2.2732]
[1733889794925,2.2726,219.93,219.86,2.52]
[1733889795134,2.2726,219.93,219.88,2.2731]
[1733889799333,6.99132672,219.9,219.88,2.2731]
[1733889800439,2.2723,219.97,219.91,2.2728]
[1733889800634,6.99132672,219.93,219.91,2.2728]
[1733889800831,1.4587,219.99,219.91,2.6]
[1733889801140,6.99132672,219.95,219.93,2.2726]
[1733889801438,6.99132672,219.95,219.91,2.6]
[1733889801439,6.99132672,219.95,219.94,2.2725]
[1733889802133,6.99132672,219.95,219.91,2.6]
[1733889802639,6.99132672,219.93,219.91,2.6]
[1733889803340,6.99132672,219.93,219.88,2.2731]
[1733889803540,6.99132672,219.91,219.89,2.6]
[1733889803839,1.4587,219.99,219.89,2.6]
[1733889804042,6.99132672,219.93,219.89,2.6]
[1733889804741,6.99132672,219.93,219.92,2.2727]
[1733889805237,6.99132672,219.93,219.89,2.6]
[1733889805238,6.99132672,219.95,219.94,2.2724]
[1733889805735,6.99132672,219.95,219.89,2.6]
[1733889806342,6.99132672,219.93,219.91,2.2728]
[1733889806739,6.99132672,219.93,219.89,2.6]
[1733889806940,1.435,220.0,219.89,2.6]
[1733889807140,6.99132672,219.92,219.89,2.6]
[1733889807841,6.99132672,219.92,219.9,2.2729]
[1733889808938,6.99132672,219.92,219.91,2.2728]
[1733889809438,6.99132672,219.93,219.89,2.6]
[1733889809644,1.435,220.0,219.89,2.6]
[1733889809941,6.99132672,219.94,219.89,2.6]
[1733889810143,6.99132672,219.94,219.91,2.2728]
[1733889810346,6.99132672,219.92,219.91,2.2728]
[1733889811739,2.2725,219.95,219.91,2.2728]
[1733889811940,6.99132672,219.93,219.91,2.2728]
[1733889813046,6.99132672,219.93,219.9,2.6]
[1733889813544,1.435,220.0,219.86,2.6]
[1733889813545,6.99132672,219.91,219.86,2.6]
[1733889813746,6.99132672,219.87,219.86,2.6]
[1733889814047,6.99132672,219.87,219.84,2.2735]
[1733889814241,6.99132672,219.85,219.79,2.8065]
[1733889814445,6.99132672,219.85,219.8,2.6]
[1733889814848,6.99132672,219.85,219.83,2.2736]
[1733889815142,6.99132672,219.85,219.8,9.59132672]
[1733889815345,6.99132672,219.85,219.8,2.6]
[1733889815940,6.99132672,219.83,219.79,2.274]
[1733889816141,1.3872,219.92,219.76,6.99132672]
[1733889816142,6.99132672,219.81,219.76,6.99132672]
[1733889816339,2.6,219.89,219.73,1.4548]
[1733889816539,6.99132672,219.79,219.74,2.6]
[1733889817345,6.99132672,219.77,219.75,2.6]
[1733889818346,6.99132672,219.77,219.7,2.275]
[1733889818553,6.99132672,219.74,219.71,2.6]
[1733889818748,6.99132672,219.72,219.58,4.3453]
[1733889819046,6.99132672,219.7,219.64,6.99132672]
[1733889819242,6.99132672,219.7,219.65,7.97634044]
[1733889819642,6.99132672,219.73,219.66,6.99132672]
[1733889820148,6.99132672,219.75,219.68,6.99132672]
[1733889820651,6.99132672,219.75,219.72,2.2748]
[1733889820846,6.99132672,219.75,219.72,2.6]
[1733889821151,6.99132672,219.73,219.72,2.6]
[1733889821551,6.99132672,219.73,219.71,2.6]
[1733889823648,6.99132672,219.73,219.58,4.3453]
[1733889823848,5.4008,219.78,219.58,4.3453]
[1733889823849,6.99132672,219.64,219.58,4.3453]
[1733889824046,6.99132672,219.64,219.58,2.6]
[1733889824246,6.99132672,219.62,219.58,2.6]
[1733889824447,6.99132672,219.62,219.59,2.2761]
[1733889825256,10.95120435,219.65,219.59,2.2761]
[1733889825557,10.95120435,219.62,219.53,5.51118993]
[1733889825758,10.95120435,219.59,219.51,2.6]
[1733889825954,13.22730435,219.59,219.51,2.2769]
[1733889826355,10.95120435,219.59,219.49,2.6]
[1733889826652,13.22770435,219.56,219.48,2.52]
[1733889827057,10.95120435,219.56,219.47,8.11699485]
[1733889827259,10.95120435,219.56,219.49,2.2771]
[1733889827565,1.3939,219.6,219.49,2.2771]
[1733889827566,2.52,219.6,219.49,2.2771]
[1733889827753,10.95120435,219.55,219.49,2.2771]
[1733889828553,10.95120435,219.55,219.47,2.52]
[1733889828554,10.95120435,219.55,219.47,2.2773]
[1733889828954,10.95120435,219.55,219.46,2.52]
[1733889829460,10.95120435,219.58,219.46,2.52]
[1733889829755,10.95120435,219.58,219.54,2.2766]
[1733889830457,10.95120435,219.58,219.52,4.7968]
[1733889830662,10.95120435,219.58,219.52,2.52]
[1733889831063,10.95120435,219.58,219.54,2.2766]
[1733889831461,10.95120435,219.58,219.52,2.52]
[1733889831763,10.95120435,219.55,219.52,4.7968]
[1733889832960,10.95120435,219.55,219.52,2.52]
[1733889833158,10.95120435,219.55,219.53,2.2767]
[1733889834061,10.95120435,219.55,219.52,2.52]
[1733889834262,10.95120435,219.55,219.53,2.2767]
[1733889837457,10.95120435,219.55,219.51,2.2769]
[1733889837659,10.95120435,219.52,219.51,2.2769]
[1733889837865,10.95120435,219.52,219.47,2.52]
[1733889838660,10.95120435,219.52,219.48,2.2773]
[1733889839167,10.95120435,219.49,219.48,2.2773]
[1733889839361,10.95120435,219.49,219.38,2.9028]
[1733889839566,10.95120435,219.49,219.39,2.52]
[1733889839763,10.95120435,219.46,219.38,2.9028]
[1733889840068,10.95120435,219.46,219.39,2.52]
[1733889840656,10.95120435,219.43,219.37,5.3795442]
[1733889841565,10.95120435,219.43,219.35,2.52]
[1733889841964,1.3763,219.5,219.36,5.44684463]
[1733889842162,10.95120435,219.46,219.36,5.44684463]
[1733889842362,10.95120435,219.46,219.36,6.85854463]
[1733889843165,10.95120435,219.46,219.37,2.52]
[1733889843468,10.95120435,219.46,219.45,2.2776]
[1733889844262,10.95120435,219.49,219.42,2.52]
[1733889844765,10.95120435,219.49,219.43,2.52]
[1733889844970,10.95120435,219.49,219.45,2.2775]
[1733889845270,10.95120435,219.49,219.44,2.52]
[1733889846369,10.95120435,219.49,219.43,2.52]
[1733889846869,10.95120435,219.49,219.31,6.18396741]
[1733889846870,2.2783,219.39,219.32,2.2789]
[1733889847167,10.95120435,219.33,219.32,2.2789]
[1733889847361,10.95120435,219.33,219.24,1.4502]
[1733889847563,10.95120435,219.33,219.31,2.279]
[1733889847764,10.95120435,219.33,219.27,2.52]
[1733889847962,10.95120435,219.33,219.29,2.2792]
[1733889848260,10.95120435,219.33,219.25,2.28050171]
[1733889848969,10.95120435,219.33,219.29,2.2792]
[1733889849165,10.95120435,219.33,219.25,2.28050171]
[1733889849366,10.95120435,219.3,219.25,2.28050171]
[1733889849970,2.52,219.32,219.25,2.28050171]
[1733889849971,10.95120435,219.27,219.25,2.28050171]
[1733889851262,10.95120435,219.27,219.18,2.52]
[1733889851467,10.95120435,219.24,219.18,2.52]
[1733889851866,10.95120435,219.24,219.13,4.2543]
[1733889852170,10.95120435,219.24,219.14,2.52]
[1733889852371,10.95120435,219.24,219.15,5.42608717]
[1733889852772,10.95120435,219.24,219.15,7.94608717]
[1733889854174,10.95120435,219.21,219.13,1.4502]
[1733889854374,10.95120435,219.18,219.14,2.52]
[1733889854570,10.95120435,219.18,219.15,2.2807]
[1733889854969,10.95120435,219.18,219.13,2.2808]
[1733889855166,10.95120435,219.15,219.07,1.3596]
[1733889855369,10.95120435,219.12,219.07,1.3596]
[1733889856372,10.95120435,219.12,219.05,2.64]
[1733889856575,10.95120435,219.12,219.01,4.2269]
[1733889856771,10.95120435,219.12,219.06,5.5109712]
[1733889857774,10.95120435,219.12,219.08,2.2814]
[1733889857976,10.95120435,219.12,219.02,2.64]
[1733889858273,10.95120435,219.09,219.02,2.64]
[1733889858474,2.8457,219.2,219.03,5.52356958]
[1733889858675,10.95120435,219.14,219.03,5.52356958]
[1733889859066,10.95120435,219.14,219.1,2.2812]
[1733889860074,10.95120435,219.14,219.12,2.2809]
[1733889860268,10.95120435,219.17,219.07,2.64]
[1733889860468,10.95120435,219.17,219.15,2.2806]
[1733889860674,4.05,219.17,219.14,2.64]
[1733889861174,4.05,219.17,219.15,2.2807]
[1733889864376,4.05,219.17,219.03,5.52356958]
[1733889864377,15.00120435,219.17,219.03,5.52356958]
[1733889864578,10.95120435,219.08,219.03,5.52356958]
[1733889865777,10.95120435,219.08,219.05,2.2817]
[1733889866176,10.95120435,219.08,219.01,2.64]
[1733889866379,10.95120435,219.08,219.04,2.2818]
[1733889866774,10.95120435,219.08,219.01,2.64]
[1733889867070,10.95120435,219.08,219.06,2.2816]
[1733889867271,2.64,219.15,219.02,5.49355559]
[1733889867272,17.6123666,219.11,219.02,5.49355559]
[1733889867873,17.6123666,219.07,218.97,2.64]
[1733889869579,17.6123666,219.07,219.03,2.2819]
[1733889870978,17.6123666,219.07,218.96,5.52528762]
[1733889871682,17.6123666,219.07,218.98,2.2824]
[1733889871683,2.2816,219.06,218.98,2.2824]
[1733889871881,2.2816,219.06,218.96,5.52528762]
[1733889872082,17.6123666,219.07,218.96,5.52528762]
[1733889872381,2.2816,219.06,218.96,5.52528762]
[1733889872782,2.2816,219.06,218.96,8.16528762]
[1733889873083,17.6123666,219.07,218.96,8.16528762]
[1733889873477,2.64,219.11,218.96,8.16528762]
[1733889873478,20.2523666,219.11,218.96,8.16528762]
[1733889873974,20.2523666,219.11,218.96,5.52528762]
[1733889874183,20.2523666,219.11,219.06,2.2816]
[1733889874781,2.2813,219.09,219.01,2.2821]
[1733889874980,20.2523666,219.11,218.97,2.64]
[1733889875174,17.6123666,219.07,218.96,5.52528762]
[1733889876583,17.6123666,219.07,218.97,1.4428]
[1733889876783,2.64,219.1,219.05,2.2817]
[1733889876984,17.6123666,219.12,219.05,2.2817]
[1733889877588,19.8933666,219.12,219.06,2.2816]
[1733889879087,17.6123666,219.12,219.06,2.2816]
[1733889879288,2.2811,219.11,219.06,2.2816]
[1733889879788,17.6123666,219.12,219.01,2.64]
[1733889880483,17.6123666,219.12,219.09,2.2813]
[1733889880788,17.6123666,219.12,219.01,2.64]
[1733889881387,17.6123666,219.12,219.03,6.18396741]
[1733889881985,5.4,219.11,219.08,2.2814]
[1733889882792,5.4,219.11,219.1,2.2812]
[1733889887097,11.02,219.11,219.1,2.2812]
[1733889898303,11.02,219.11,219.08,2.2814]
[1733889898503,5.62,219.11,219.08,2.2814]
[1733889899104,13.28181327,219.13,219.08,2.2814]
[1733889899505,11.00091327,219.13,219.07,2.58]
[1733889899706,11.00091327,219.13,219.1,2.2812]
[1733889901009,11.00091327,219.13,219.07,2.58]
[1733889901208,11.00091327,219.13,219.08,2.2813]
[1733889901408,11.00091327,219.13,219.05,2.58]
[1733889901617,2.2812,219.11,219.05,2.2817]
[1733889901911,11.00091327,219.13,219.05,4.8617]
[1733889902112,12.61822133,219.12,219.03,2.58]
[1733889902316,16.49822133,219.11,219.03,2.58]
[1733889902509,3.88,219.11,219.03,2.58]
[1733889902714,3.88,219.11,219.1,2.2812]
[1733889904010,1.6565,219.11,219.1,2.2812]
[1733889904217,11.00091327,219.2,219.17,2.2804]
[1733889904613,1.3519,219.22,219.14,2.58]
[1733889904821,1.3519,219.22,219.19,2.2803]
[1733889905216,1.3519,219.22,219.14,2.58]
[1733889906623,1.3519,219.22,219.18,2.2804]
[1733889907119,2.58,219.28,219.14,2.58]
[1733889907120,11.00091327,219.26,219.2,2.2801]
[1733889907620,11.00091327,219.26,219.22,2.28]
[1733889907817,189.1048639,219.37,219.24,11.00091327]
[1733889908014,1.3592,219.38,219.3,11.00091327]
[1733889908214,1.3592,219.38,219.35,2.2786]
[1733889908418,1.3592,219.38,219.36,2.58]
[1733889908619,1.3592,219.38,219.37,2.58]
[1733889910121,9.07302623,219.43,219.37,2.58]
[1733889910323,9.07385722,219.43,219.37,2.58]
[1733889910512,3.61313099,219.43,219.37,2.58]
[1733889910715,4.24,219.42,219.37,2.58]
[1733889911017,4.24,219.42,219.4,2.2781]
[1733889912715,2.0189,219.42,219.4,2.2781]
[1733889913425,4.89,219.41,219.4,2.2781]
[1733889916619,4.89,219.41,219.4,2.58]
[1733889916819,4.89,219.41,219.32,22.9638834]
[1733889917024,4.89,219.41,219.33,2.58]
[1733889917624,4.89,219.41,219.32,5.40546437]
[1733889918023,4.89,219.41,219.33,2.56]
[1733889918625,4.89,219.41,219.36,2.2785]
[1733889919237,4.89,219.41,219.37,2.2784]
[1733889919537,4.89,219.41,219.38,2.56]
[1733889919742,4.89,219.41,219.32,7.68436437]
[1733889920040,22.44841903,219.41,219.33,2.56]
[1733889920235,2.2781,219.4,219.33,2.56]
[1733889920439,4.89,219.41,219.38,2.2783]
[1733889920641,4.89,219.41,219.39,2.56]
[1733889921141,4.89,219.41,219.39,4.8382]
[1733889923842,4.89,219.41,219.4,2.56]
[1733889925238,4.89,219.41,219.39,2.2782]
[1733889925439,4.89,219.41,219.4,2.56]
[1733889927336,4.89,219.41,219.31,22.99998913]
[1733889927540,4.89,219.41,219.32,2.56]
[1733889927841,4.89,219.41,219.31,5.4415701]
[1733889927842,4.21,219.4,219.31,5.4415701]
[1733889928036,4.21,219.4,219.31,2.56]
[1733889928245,1.4736,219.39,219.31,2.56]
[1733889928439,2.9101,219.39,219.31,2.56]
[1733889929444,2.2784,219.38,219.31,4.839]
[1733889929644,2.9101,219.39,219.31,4.839]
[1733889929841,2.9101,219.39,219.32,2.56]
[1733889931042,2.9101,219.39,219.35,2.2786]
[1733889931642,2.9101,219.39,219.32,2.56]
[1733889931846,2.9101,219.39,219.28,5.36748738]
[1733889932040,17.55841903,219.37,219.29,2.56]
[1733889932346,17.55841903,219.37,219.3,2.2791]
[1733889932737,17.55841903,219.37,219.33,2.2788]
[1733889934547,17.55841903,219.37,219.32,2.2789]
[1733889934840,2.2785,219.36,219.29,2.56]
[1733889935544,2.9101,219.39,219.28,2.56]
[1733889935545,2.2792,219.3,219.28,2.56]
[1733889937348,17.55841903,219.33,219.28,2.56]
[1733889938056,17.55841903,219.33,219.3,2.2791]
[1733889938845,17.55841903,219.33,219.3,2.56]
[1733889939438,17.55841903,219.33,219.21,5.52100939]
[1733889939647,17.55841903,219.33,219.22,2.56]
[1733889939847,17.55841903,219.29,219.18,42.74209921]
[1733889940049,2.2795,219.27,219.23,2.2798]
[1733889940248,17.55841903,219.29,219.19,2.56]
[1733889940449,17.55841903,219.29,219.19,7.92330686]
[1733889940646,19.83771903,219.29,219.22,2.28]
[1733889941153,10.99118845,219.25,219.23,2.56]
[1733889942455,14.79118845,219.25,219.23,2.56]
[1733889944553,14.79118845,219.25,219.2,2.56]
[1733889944758,14.79118845,219.25,219.19,4.8402]
[1733889944958,14.79118845,219.25,219.18,2.56]
[1733889945555,2.2798,219.24,219.18,2.56]
[1733889946052,10.99118845,219.22,219.1,2.7901]
[1733889946260,10.99118845,219.22,219.11,2.56]
[1733889946760,10.99118845,219.22,219.1,2.7901]
[1733889947056,14.79118845,219.25,219.12,10.99118845]
[1733889947759,14.79118845,219.25,219.14,5.47152353]
[1733889949463,13.27118845,219.22,219.16,2.2805]
[1733889949655,13.27118845,219.22,219.17,2.5]
[1733889951166,13.27118845,219.22,219.16,2.2806]
[1733889951358,13.27118845,219.22,219.17,2.5]
[1733889951556,13.27118845,219.22,219.16,2.2806]
[1733889951763,10.99118845,219.19,219.15,2.5]
[1733889953664,10.99118845,219.19,219.16,2.2806]
[1733889953866,3.8,219.25,219.15,2.5]
[1733889954062,3.8,219.25,219.18,10.99118845]
[1733889954363,3.8,219.25,219.24,2.2798]
[1733889954562,3.8,219.25,219.24,4.7798]
[1733889963669,10.99118845,219.36,219.24,13.49118845]
[1733889965271,0.4,219.35,219.27,2.2794]
[1733889965474,0.4,219.35,219.24,13.49118845]
[1733889966670,0.4,219.35,219.31,2.279]
[1733889966872,0.4,219.35,219.32,2.5]
[1733889967679,0.4,219.35,219.23,5.61036292]
[1733889967981,0.4,219.35,219.24,2.5]
[1733889968176,0.4,219.35,219.3,2.2791]
[1733889968382,0.4,219.35,219.31,2.5]
[1733889973883,0.4,219.35,219.34,2.2787]
[1733889976498,1.3973,219.48,219.41,2.2779]
[1733889976694,10.99118845,219.47,219.42,2.5]
[1733889977389,10.99118845,219.47,219.33,10.99118845]
[1733889977695,10.99118845,219.44,219.34,2.4]
[1733889978197,10.99118845,219.44,219.35,2.4]
[1733889978694,13.26888845,219.44,219.38,2.2783]
[1733889980192,13.26888845,219.44,219.35,2.4]
[1733889980393,13.26888845,219.44,219.39,2.2782]
[1733889980698,13.26888845,219.44,219.4,2.4]
[1733889981392,10.99118845,219.44,219.39,2.4]
[1733889982092,10.99118845,219.44,219.2,47.42]
[1733889982394,2.2781,219.4,219.27,10.99118845]
[1733889982591,2.7385,219.43,219.3,10.99118845]
[1733889983296,10.99118845,219.44,219.35,5.33708232]
[1733889983498,10.99118845,219.44,219.36,2.4]
[1733889983689,2.2775,219.46,219.36,2.4]
[1733889983993,1.3973,219.48,219.36,13.39118845]
[1733889984494,1.3973,219.48,219.39,2.2781]
[1733889984692,10.99118845,219.42,219.24,2.7854]
[1733889984892,10.99118845,219.45,219.25,2.4]
[1733889984896,10.99118845,219.37,219.25,2.4]
[1733889985098,10.99118845,219.37,219.31,5.3945783]
[1733889985395,10.99118845,219.37,219.32,2.4]
[1733889985693,10.99118845,219.37,219.32,4.6789]
[1733889985896,10.99118845,219.37,219.32,2.4]
[1733889986496,10.99118845,219.37,219.33,2.2788]
[1733889987103,2.2786,219.35,219.32,2.4]
[1733889987298,10.99118845,219.37,219.32,2.4]
[1733889987603,10.99118845,219.37,219.3,7.83504781]
[1733889988300,13.26968845,219.37,219.32,2.2789]
[1733889988699,2.2785,219.36,219.3,7.83504781]
[1733889988900,2.2785,219.36,219.3,10.11404781]
[1733889990205,2.2785,219.36,219.3,7.83504781]
[1733889990502,10.99118845,219.37,219.24,2.7854]
[1733889990701,10.99118845,219.37,219.13,47.4]
[1733889990702,10.99118845,219.34,219.25,2.4]
[1733889990909,10.99118845,219.34,219.26,2.2795]
[1733889991497,2.2792,219.3,219.24,2.2797]
[1733889991699,2.2792,219.3,219.25,2.4]
[1733889993802,13.27018845,219.31,219.25,2.4]
[1733889994802,13.27018845,219.31,219.25,4.6796]
[1733889995901,10.99118845,219.31,219.25,4.6796]
[1733889996103,10.99118845,219.31,219.25,2.4]
[1733889996409,10.99118845,219.31,219.26,2.2795]
[1733889997104,10.99118845,219.28,219.23,2.2798]
[1733889997703,10.99118845,219.25,219.22,2.2799]
[1733889998003,2.2794,219.28,219.21,2.4]
[1733889998004,10.99118845,219.28,219.21,2.4]
[1733889998210,5.27,219.3,219.29,2.2792]
[1733890000409,10.99118845,219.4,219.37,2.2784]
[1733890001107,1.3557,219.42,219.37,2.2784]
[1733890001303,1.3557,219.42,219.36,2.4]
[1733890001506,1.3557,219.42,219.38,2.2783]
[1733890006211,1.3557,219.42,219.37,2.2784]
[1733890007009,10.99118845,219.4,219.33,2.4]
[1733890007711,1.3557,219.42,219.33,2.4]
[1733890009114,1.3557,219.42,219.36,2.2784]
[1733890009313,1.3557,219.42,219.33,2.4]
[1733890009912,1.3557,219.42,219.36,2.2785]
[1733890010412,1.3557,219.42,219.37,2.2784]
[1733890012614,1.3557,219.42,219.38,2.2783]
[1733890014116,1.3557,219.42,219.33,2.4]
[1733890014311,10.99118845,219.4,219.35,2.2786]
[1733890014917,10.99118845,219.37,219.25,1.4798]
[1733890015214,10.99118845,219.37,219.31,2.279]
[1733890016616,13.26968845,219.37,219.31,2.279]
[1733890017018,2.4,219.36,219.31,2.279]
[1733890017316,10.99118845,219.34,219.3,2.2791]
[1733890017719,10.99118845,219.34,219.28,2.4]
[1733890017913,13.26998845,219.34,219.27,2.2794]
[1733890018513,13.26998845,219.34,219.28,2.2793]
[1733890020422,10.99118845,219.34,219.28,2.2793]
[1733890020719,2.2788,219.33,219.28,2.2793]
[1733890020919,2.2788,219.33,219.26,2.4]
[1733890021120,10.99118845,219.31,219.18,12.36348845]
[1733890021320,10.99118845,219.31,219.19,2.4]
[1733890021916,2.2792,219.3,219.21,2.28]
[1733890022117,2.2792,219.3,219.2,2.4]
[1733890022916,2.2792,219.3,219.23,2.2799]
[1733890023328,2.2794,219.28,219.18,1.3723]
[1733890023624,2.2794,219.28,219.22,2.4]
[1733890023818,13.27058845,219.28,219.21,2.2801]
[1733890024025,10.99118845,219.28,219.15,10.99118845]
[1733890024318,10.99118845,219.25,219.18,2.2804]
[1733890024518,10.99118845,219.25,219.17,2.4]
[1733890024822,1.3377,219.24,219.17,2.4]
[1733890026322,1.3377,219.24,219.21,2.28]
[1733890026523,1.3377,219.24,219.17,2.4]
[1733890027118,1.3377,219.24,219.21,2.28]
[1733890027515,1.3377,219.24,219.17,2.4]
[1733890028418,1.3377,219.24,219.19,2.2802]
[1733890028920,1.3377,219.24,219.2,2.2802]
[1733890029224,7.03407335,219.23,219.2,2.2802]
[1733890030616,7.03407335,219.21,219.16,5.60269924]
[1733890030819,7.03407335,219.21,219.18,2.4]
[1733890031921,7.03407335,219.21,219.16,5.60269924]
[1733890032121,7.03407335,219.21,219.17,2.4]
[1733890032631,7.03407335,219.21,219.18,2.2804]
[1733890036332,7.03407335,219.19,219.13,47.4]
[1733890036527,7.03407335,219.17,219.16,2.4]
[1733890038130,7.03407335,219.17,219.16,4.6806]
[1733890039437,2.4,219.27,219.16,4.6806]
[1733890039438,202.7848639,219.42,219.16,9.43407335]
[1733890039634,7.03407335,219.26,219.19,7.03407335]
[1733890040137,7.03407335,219.26,219.24,2.2797]
[1733890041341,7.03407335,219.26,219.23,4.6798]
[1733890041535,7.03407335,219.24,219.23,4.6798]
[1733890042038,7.03407335,219.24,219.23,2.4]
[1733890042636,7.03407335,219.24,219.23,0.1769]